[Event "3rd Sunway Formentera-A 2024"]
[Site "Formentera"]
[Date "2024.04.18"]
[Round "9.12"]
[White "Serikbay, Assel"]
[Black "Tsatsalashvili, Keti"]
[Result "1-0"]
[ECO "E04"]
[WhiteElo "2109"]
[BlackElo "2315"]
[Annotator "TA"]
[PlyCount "83"]
[EventDate "2024.04.03"]
[EventType "swiss"]
[EventCountry "ESP"]
[SourceTitle "playchess.com"]
[Source "ChessBase"]
[SourceQuality "1"]
[TimeControl "40/5400+30:1800+30"]

{[%evp 18,83,0,-16,-15,-9,-14,-25,-29,-24,7,0,72,67,209,218,464,449,400,416,337,346,339,320,311,322,319,312,314,332,375,255,239,256,361,331,370,370,355,377,441,406,389,391,436,445,461,428,477,470,452,439,481,467,797,741,955,870,957,956,1045,1002,1485,1569,1698,1629,1766,1773]} 1. d4 {[%emt 0:00:06]} Nf6 {[%emt 0:00:16]} 2. c4 {[%emt 0:00:13]} e6 {[%emt 0:00:05]} 3. g3 {[%emt 0:00:09]} d5 {[%emt 0:00:09]} 4. Nf3 {[%emt 0:00:11]} dxc4 {[%emt 0:00:29]} 5. Bg2 {[%emt 0:00:17]} a6 {[%emt 0:00:41]} 6. O-O {[%emt 0:05:39]} Nc6 {[%emt 0:01:10]} 7. e3 {[%emt 0:00:17]} Bd7 {[%emt 0:01:12]} 8. Nbd2 {[%emt 0:03:40] E04: Open Catalan: 5 Nf3.} b5 {[%emt 0:06:50]} 9. Ne5 {[%emt 0:12:40]} Nd5 {[%emt 0:05:57]} (9... Nxe5 $5) 10. Nxd7 {[%emt 0:01:43]} Qxd7 {[%emt 0:00:21]} 11. e4 {[%emt 0:03:22]} Nb6 {[%emt 0:02:00]} 12. d5 {[%emt 0:09:55]} Ne5 $146 {[%emt 0:04:38]} ({Predecessor:} 12... Nb4 13. Bh3 Nd3 14. Nf3 Na4 15. b3 Nac5 16. bxc4 bxc4 17. Ng5 Be7 18. dxe6 fxe6 {½-½ Kostiukova,L (2235)-Charochkina,D (2316) EU-ch (Women) 10th 2009 (6)}) 13. Bh3 {[%emt 0:06:34]} h5 {[%emt 0:08:27]} 14. Nf3 {[%emt 0:14:03]} Nxf3+ {[%emt 0:16:02]} (14... Bd6 $11) 15. Qxf3 $16 {[%emt 0:00:09]} O-O-O {[%emt 0:02:58] [#]} (15... Rd8 $14) 16. Bg5 $1 $18 {[%emt 0:02:27]} Re8 $2 {[%emt 0:11:47]} (16... Bc5 17. Bxd8 Qxd8 18. Qxf7 Kb8 19. dxe6 (19. Qxe6 Bd4 $18) 19... h4) 17. Rfd1 $18 {[%emt 0:01:55]} f5 {[%emt 0:01:25]} (17... Bd6 18. e5) 18. dxe6 {[%emt 0:01:54]} (18. exf5 exd5 19. b3 cxb3 $14) 18... Qc6 {[%emt 0:00:09]} 19. Qxf5 {[%emt 0:17:03]} Be7 {[%emt 0:00:51]} 20. Bxe7 {[%emt 0:00:32]} Rxe7 {[%emt 0:00:04]} 21. e5 {[%emt 0:01:37]} Kb8 {[%emt 0:01:00]} 22. Rd2 {[%emt 0:03:35]} Ka7 {[%emt 0:06:54]} 23. Rad1 {[%emt 0:01:29]} h4 {[%emt 0:04:47]} 24. Rd8 {[%emt 0:06:54]} Rxd8 {[%emt 0:03:25]} 25. Rxd8 {[%emt 0:00:02]} c3 {[%emt 0:00:06]} (25... b4 $142 26. Rh8 (26. gxh4 c3 $18) 26... c3 27. bxc3 (27. gxh4 $2 c2 $19) (27. Qf8 Qe8 $18) 27... bxc3) 26. Qc2 $18 {[%emt 0:02:30]} (26. gxh4 $2 c2 (26... cxb2 $2 27. Rd1 $19) 27. Bg4 c1=Q+ $19 (27... c1=R+ $2 28. Rd1 $19) (27... g6 $2 28. Qxg6 c1=Q+ 29. Rd1 $19)) 26... b4 {[%emt 0:04:19]} 27. bxc3 {[%emt 0:00:14]} (27. gxh4 Qc5 28. bxc3 bxc3 $16) 27... bxc3 {[%emt 0:00:20]} 28. Rd3 {[%emt 0:01:11]} (28. gxh4 Qc5 29. Rd3 Qxe5 $18) 28... Nd5 {[%emt 0:08:16]} 29. Bg2 {[%emt 0:00:27]} (29. gxh4 Qc4 $16) 29... Nb4 {[%emt 0:00:03]} 30. Bxc6 {[%emt 0:01:43]} (30. Qxc3 Qxc3 31. Rxc3 Nxa2 $18) 30... Nxc2 {[%emt 0:00:03]} 31. Bd7 {[%emt 0:00:28]} (31. gxh4 Rxe6 32. Bg2 (32. Rxc3 Nd4 $18) 32... Rxe5 33. Rxc3 Nd4 34. Rxc7+ Kb6 $18) (31. Rxc3 Nd4 $18) 31... Kb6 {[%emt 0:00:53]} 32. f4 {[%emt 0:02:01]} (32. Rxc3 Nd4 $18) (32. gxh4 c5 33. Rxc3 Nd4 $18) 32... c5 {[%emt 0:01:39]} 33. Rxc3 {[%emt 0:00:04]} Nd4 {[%emt 0:00:02]} 34. Kf2 {[%emt 0:01:23]} ({Weaker is} 34. gxh4 Ne2+ (34... Nxe6 $2 {is the wrong capture.} 35. Bxe6 Rxe6 36. Kf2 $18) 35. Kf2 Nxc3 $17) (34. Kg2 hxg3 35. hxg3 (35. Rxg3 c4 $16) 35... a5) 34... hxg3+ {[%emt 0:01:09]} 35. hxg3 {[%emt 0:00:03]} (35. Rxg3 c4 36. Ke3 Nf5+ 37. Ke4 Nxg3+ 38. hxg3 g6) 35... g6 {[%emt 0:00:12]} (35... Nxe6 $142 36. Bxe6 Rxe6) 36. Ke3 $18 {[%emt 0:00:24]} Nf5+ {[%emt 0:04:41]} 37. Ke4 {[%emt 0:00:13]} Rh7 {[%emt 0:00:02]} 38. Be8 {[%emt 0:00:47]} Ne7 {[%emt 0:00:39]} 39. Rb3+ {[%emt 0:00:34]} Ka5 {[%emt 0:02:00]} 40. Rb7 {[%emt 0:00:00]} c4 {[%emt 0:00:00]} 41. Bf7 {[%emt 0:01:54]} Nf5 {[%emt 0:02:01]} 42. g4 {[%emt 0:04:05]} 1-0

[Event "3rd Sunway Formentera-A 2024"]
[Site "Formentera"]
[Date "2024.04.19"]
[Round "10.1"]
[White "Alsina Leal, Daniel"]
[Black "Donchenko, Alexander"]
[Result "0-1"]
[ECO "B51"]
[WhiteElo "2497"]
[BlackElo "2633"]
[Annotator "TA"]
[PlyCount "132"]
[EventDate "2024.04.03"]
[EventType "swiss"]
[EventCountry "ESP"]
[SourceTitle "playchess.com"]
[Source "ChessBase"]
[SourceQuality "1"]
[TimeControl "40/5400+30:1800+30"]

{[%evp 9,132,9,24,22,19,22,15,0,0,0,0,0,5,0,18,12,23,-25,-33,-31,-31,-31,-39,-38,-38,-36,-27,-32,-32,-70,-96,-115,-107,-77,-14,-15,-18,-53,-54,-95,-9,-29,-37,-81,-89,-111,0,0,0,-71,-66,-87,-85,-86,-52,-62,-74,-347,-332,-347,-181,-187,-183,-187,-178,-188,-190,-189,-184,-214,-214,-288,-273,-277,-285,-340,-279,-337,-345,-345,-345,-337,-214,-419,-398,-435,-435,-519,-515,-515,-515,-515,-355,-355,-355,-412,-349,-1510,-1502,-1510,-1510,-1510,-1510,-1510,-1475,-1517,-1502,-419,0,0,0,0,0,-5314,-716,-29975,-29976,-29976,-29977,-29977,-29978,-29978,-29979,-29979,-29980]} 1. e4 {[%emt 0:10:28]} c5 {[%emt 0:00:55]} 2. Nf3 {[%emt 0:00:42]} d6 {[%emt 0:00:06]} 3. Bb5+ {[%emt 0:00:17]} Nd7 {[%emt 0:00:14]} 4. O-O {[%emt 0:00:12]} a6 {[%emt 0:00:14]} 5. Bd3 {[%emt 0:00:06]} Ngf6 {[%emt 0:00:31]} 6. Re1 {[%emt 0:00:47]} e6 {[%emt 0:00:33]} 7. c3 {[%emt 0:00:33]} b5 {[%emt 0:00:45]} 8. Bc2 {[%emt 0:00:26] The position is equal.} c4 {[%emt 0:00:26]} 9. a4 {[%emt 0:00:50]} Bb7 {[%emt 0:00:23]} 10. d4 {[%emt 0:00:36]} cxd3 {[%emt 0:00:12]} 11. Qxd3 {[%emt 0:00:11]} Nc5 {[%emt 0:00:19][%csl LRd3,LRe4]} 12. Qe2 {[%emt 0:00:48]} Nxa4 {[%emt 0:00:14]} 13. Rxa4 {[%emt 0:19:47]} (13. e5 {deserves consideration.} Nd7 14. Bg5) 13... bxa4 $11 {[%emt 0:01:07]} 14. Bxa4+ {[%emt 0:00:04]} Nd7 {[%emt 0:00:09]} 15. e5 {[%emt 0:00:08]} Qc7 {[%emt 0:11:32]} 16. Bf4 {[%emt 0:03:40]} Bxf3 {[%emt 0:13:35]} 17. Qxf3 {[%emt 0:04:19]} d5 {[%emt 0:00:18]} 18. Nd2 {[%emt 0:12:31][%cal Oc3c4]} Rd8 {[%emt 0:13:12]} 19. h4 {[%emt 0:09:29]} Be7 {[%emt 0:06:52][%cal Oe8g8]} 20. Qg4 {[%emt 0:02:01]} Kf8 {[%emt 0:03:26]} 21. h5 {[%emt 0:03:38]} Nc5 {[%emt 0:01:43]} ({Black should try} 21... h6 $17 22. Re3 Kg8) 22. Bc2 {[%emt 0:00:43]} d4 {[%emt 0:01:03] Repels Re3} 23. cxd4 {[%emt 0:11:43]} Rxd4 {[%emt 0:00:27]} 24. Qf3 {[%emt 0:04:01]} Qd8 {[%emt 0:07:57]} (24... g5 $17 25. Be3 Qxe5) 25. Be3 {[%emt 0:05:02]} Nd3 $1 {[%emt 0:01:12]} (25... Rxd2 $2 26. Bxd2 Nd7 (26... Qxd2 $2 27. Rd1 $18) 27. Bc3 $18) 26. Bxd3 {[%emt 0:00:10]} Rxd3 {[%emt 0:00:03]} 27. Rc1 {[%emt 0:03:13]} h6 {[%emt 0:16:43]} (27... Rxd2 28. Bxd2 h6 (28... Qxd2 $2 29. Rd1 $18) 29. Be1 $18) (27... f5 $1 $17 28. Qb7 (28. exf6 gxf6 29. Ne4 Rg8 $17) 28... Rd7 (28... Rxd2 29. Rc8 $14) 29. Qxa6 Kf7 (29... Rxd2 30. Rc8 $16)) 28. Qb7 {[%emt 0:00:26] Rc8 would now be deadly.} Qd5 {[%emt 0:00:19]} (28... Rxd2 $2 29. Rc8 $18) 29. Qc8+ {[%emt 0:06:35]} (29. Rc8+ $11 {keeps the balance.} Bd8 30. Qc7) 29... Bd8 $17 {[%emt 0:01:32][%cal Od3e3] Strongly threatening ...Rxe3!} 30. Qc2 {[%emt 0:00:18]} Kg8 {[%emt 0:01:12][%cal Od8g5]} 31. Nc4 {[%emt 0:00:27]} Be7 {[%emt 0:01:58]} 32. Ra1 {[%emt 0:00:44]} Bg5 {[%emt 0:07:40]} 33. Ra5 $2 {[%emt 0:01:33][%mdl 8192]} (33. Bb6 $17) 33... Rd1+ $1 $19 {[%emt 0:00:55]} 34. Kh2 {[%emt 0:00:01]} Qd3 {[%emt 0:00:07]} (34... Qd8 $142 35. Qe4 Bxe3 36. fxe3 Qg5 37. Qa8+ Rd8) 35. Qxd3 {[%emt 0:00:28]} Rxd3 {[%emt 0:00:02]} 36. Bc5 {[%emt 0:00:59][%cal Og2g3]} Rd5 {[%emt 0:02:06]} 37. b4 {[%emt 0:00:30][%cal Og2g3]} Bf4+ {[%emt 0:00:18]} 38. g3 {[%emt 0:00:21]} Bxe5 {[%emt 0:00:03] ...Bd4 is the strong threat.} 39. Ne3 {[%emt 0:00:40]} Rd7 {[%emt 0:01:02]} 40. Rxa6 {[%emt 0:00:00]} Bd4 {[%emt 0:00:00]} 41. Bxd4 {[%emt 0:09:29]} Rxd4 {[%emt 0:00:52][%mdl 4096] Endgame. KRR-KRN} 42. b5 {[%emt 0:00:10]} Rb4 {[%emt 0:00:56]} 43. Rb6 {[%emt 0:02:09]} Kh7 {[%emt 0:00:57]} 44. Rb7 {[%emt 0:00:49]} Rf8 {[%emt 0:00:27]} 45. Kh3 {[%emt 0:06:26]} Rd4 {[%emt 0:03:32]} 46. f4 $2 {[%emt 0:02:29]} (46. Rc7) 46... Rdd8 {[%emt 0:03:36]} 47. b6 {[%emt 0:03:34]} Rb8 {[%emt 0:00:14]} 48. Rxb8 {[%emt 0:00:05]} Rxb8 {[%emt 0:00:05] KR-KN} 49. Nc4 {[%emt 0:00:09]} Kg8 {[%emt 0:00:34]} 50. Kg4 {[%emt 0:03:51]} Rc8 {[%emt 0:02:10]} 51. b7 {[%emt 0:03:59]} Rb8 {[%emt 0:00:09]} (51... Rxc4 52. b8=Q+ (52. b8=B $2 {loses.} Rc1 $19) 52... Kh7 53. Qa7 f5+ 54. Kh3 $18) 52. Na5 {[%emt 0:00:07]} f6 {[%emt 0:03:44]} 53. f5 $2 {[%emt 0:02:28]} (53. Kf3 Kf8 54. Ke4) 53... e5 $1 {[%emt 0:00:54]} 54. Kf3 {[%emt 0:00:11]} Kf8 {[%emt 0:00:06]} 55. Ke4 {[%emt 0:00:16] [#]} Ke8 $1 {[%emt 0:00:04]} 56. Kd5 {[%emt 0:00:16]} Kd7 {[%emt 0:00:04]} 57. Nb3 {[%emt 0:00:48]} Rxb7 {[%emt 0:02:27]} 58. Nc5+ {[%emt 0:00:04] [#]} Kc8 $2 {[%emt 0:00:25]} (58... Kc7 $1 $19 {[%cal Rc7c8]} 59. Ne6+ (59. Nxb7 $2 Kxb7 60. Kc5 Ka6 $19) 59... Kc8) 59. Nxb7 $11 {[%emt 0:00:05]} Kxb7 {[%emt 0:00:02] KP-KP} 60. Kc5 {[%emt 0:01:17]} Ka6 {[%emt 0:00:29] ( -> ...Ka5)} 61. Kc4 $2 {[%emt 0:02:19][%mdl 8192]} (61. Kb4 $11 Kb6 62. Kc3) 61... Kb6 $19 {[%emt 0:00:08]} 62. Kb4 {[%emt 0:00:24]} Kc6 {[%emt 0:00:07] Black mates.} 63. Kc4 {[%emt 0:00:05]} Kd6 {[%emt 0:00:05]} 64. Kc3 {[%emt 0:00:49]} Kc5 {[%emt 0:00:14]} 65. Kd3 {[%emt 0:00:11]} Kd5 {[%emt 0:00:06]} 66. Ke3 {[%emt 0:00:10]} e4 {[%emt 0:00:15] Weighted Error Value: White=0.38/Black=0.23 (precise) .  Loses game:     	White=2     	---        Mistake:       	White=4     	Black=4      Inaccurate:     	White=6     	Black=2      OK:         	White=16    	Black=25     Best:        	White=6     	Black=7      Strong:       	---       	Black=3} 0-1

[Event "3rd Sunway Formentera-A 2024"]
[Site "Formentera"]
[Date "2024.04.19"]
[Round "10.2"]
[White "Ivanchuk, Vasyl"]
[Black "Xiao, Tong(Qd)"]
[Result "1/2-1/2"]
[ECO "D53"]
[WhiteElo "2611"]
[BlackElo "2484"]
[Annotator "TA"]
[PlyCount "123"]
[EventDate "2024.04.03"]
[EventType "swiss"]
[EventCountry "ESP"]
[SourceTitle "playchess.com"]
[Source "ChessBase"]
[SourceQuality "1"]
[TimeControl "40/5400+30:1800+30"]

{[%evp 13,123,26,29,19,20,26,46,29,28,29,30,28,48,33,54,52,39,44,70,42,64,39,54,40,50,27,77,81,102,99,118,95,97,83,85,67,78,72,77,58,63,23,41,44,73,63,71,66,106,89,89,100,96,98,124,127,122,122,140,77,80,98,243,126,120,134,118,125,137,133,201,202,275,283,280,0,385,377,496,108,108,50,55,0,133,98,120,0,0,0,0,0,8,10,25,21,47,0,0,0,0,0,0,0,0,0,0,0,0,0,0,0]} 1. d4 {[%emt 0:00:03]} Nf6 {[%emt 0:00:10]} 2. c4 {[%emt 0:00:06]} e6 {[%emt 0:00:06]} 3. Nf3 {[%emt 0:00:03]} d5 {[%emt 0:00:11]} 4. Nc3 {[%emt 0:00:05]} Be7 {[%emt 0:00:37]} 5. Qc2 {[%emt 0:00:24]} O-O {[%emt 0:00:31]} 6. Bg5 {[%emt 0:04:27]} c5 {[%emt 0:04:33]} 7. dxc5 {[%emt 0:05:18]} Qa5 {[%emt 0:08:13]} 8. cxd5 {[%emt 0:03:27]} exd5 {[%emt 0:00:54]} 9. e3 {[%emt 0:05:55]} h6 {[%emt 0:02:53]} 10. Bh4 {[%emt 0:00:57] White is slightly better.} Qxc5 {[%emt 0:02:03]} 11. a3 {[%emt 0:12:40]} Be6 {[%emt 0:02:07]} 12. Bd3 {[%emt 0:03:07]} a6 {[%emt 0:10:24]} 13. Rd1 {[%emt 0:16:38]} Nbd7 {[%emt 0:03:55]} 14. O-O {[%emt 0:02:57]} Rac8 {[%emt 0:03:11]} 15. Nd4 {[%emt 0:00:43]} b5 {[%emt 0:12:29]} 16. Qb1 {[%emt 0:12:38]} Qb6 {[%emt 0:03:00][%cal Oe7a3]} 17. a4 {[%emt 0:07:25]} b4 {[%emt 0:12:29]} 18. Nce2 {[%emt 0:00:24]} Rfe8 {[%emt 0:01:26]} 19. Nf4 {[%emt 0:08:00] Nfxe6 is the strong threat.} Nf8 {[%emt 0:01:08]} (19... Nc5 $11 {keeps the balance.}) 20. h3 {[%emt 0:02:41] White is more active.} N6d7 {[%emt 0:01:03]} 21. Bxe7 {[%emt 0:00:38]} Rxe7 {[%emt 0:00:02]} 22. Be2 {[%emt 0:04:57]} Ree8 {[%emt 0:05:54]} 23. Nb3 {[%emt 0:01:37]} Nc5 {[%emt 0:01:47] Prevents Qd3.} 24. a5 {[%emt 0:00:36]} (24. Nxd5 $2 Bxd5 (24... Nxa4 $2 25. Nxb6 Nxb6 26. Nd4 $18) 25. Rxd5 Nxb3 $19) 24... Qd8 {[%emt 0:00:50]} 25. Qa2 {[%emt 0:01:16]} Nxb3 {[%emt 0:04:22]} 26. Qxb3 {[%emt 0:00:01]} Qxa5 {[%emt 0:00:08][%cal Od5d4]} 27. Ra1 {[%emt 0:01:39]} (27. Nxd5 Qc5 $11) 27... Qc5 {[%emt 0:00:23]} 28. Bxa6 {[%emt 0:00:02][%cal Be2a6,Ba6b7,Bb7d5][%mdl 32]} Rb8 {[%emt 0:00:54]} 29. Rfc1 {[%emt 0:00:20]} Qd6 {[%emt 0:00:36]} 30. Qd1 {[%emt 0:01:40]} Ra8 {[%emt 0:06:51]} 31. Bb7 {[%emt 0:01:34][%csl LRa8,LRd5]} Rxa1 {[%emt 0:07:31]} 32. Rxa1 {[%emt 0:00:01]} Qe5 {[%emt 0:00:39]} 33. Qd2 {[%emt 0:00:13]} (33. Bxd5 $6 Rd8 $11) 33... Rb8 {[%emt 0:00:48]} 34. Bxd5 {[%emt 0:03:07]} (34. Qxb4 Bc8 35. Ra7 Qc7 36. Nxd5 Rxb7 37. Nxc7 (37. Ne7+ $2 Kh7 $19) 37... Rxb4 $17) 34... Rd8 {[%emt 0:00:40]} 35. Ra5 $1 {[%emt 0:01:04]} Qe4 {[%emt 0:04:32]} 36. f3 {[%emt 0:01:02]} (36. Rb5 $142) 36... Qb1+ $16 {[%emt 0:00:10]} 37. Kh2 {[%emt 0:00:01]} b3 {[%emt 0:00:49]} (37... g5 $16 {was called for.}) 38. Qd4 {[%emt 0:01:00]} (38. Rb5 $18) 38... Bxd5 {[%emt 0:00:17]} 39. Nxd5 {[%emt 0:00:33] White wants to mate with Ne7+.} Ne6 {[%emt 0:00:12]} 40. Qe5 {[%emt 0:00:00]} Qc2 {[%emt 0:00:00]} 41. Rb5 {[%emt 0:08:29]} Ng5 {[%emt 0:04:10]} (41... Qd3 $16 {might work better.} 42. Rb8 Rxb8 43. Qxb8+ Kh7) 42. Kg3 $18 {[%emt 0:02:09]} Kh7 {[%emt 0:03:12]} 43. e4 {[%emt 0:09:11]} Qd1 {[%emt 0:05:39]} 44. h4 $2 {[%emt 0:05:18]} (44. Qf5+ $18 Kh8 45. Kh2) 44... Ne6 $2 {[%emt 0:01:48][%mdl 8192]} (44... Qe1+ $11 {and Black has nothing to worry.} 45. Kg4 h5+ 46. Kxg5 Qd2+ 47. Kf5 (47. Kxh5 $2 Rxd5 48. Qxd5 Qf4 $19) 47... g6+ 48. Kf6 Qh6) 45. Rb7 {[%emt 0:04:55]} Rf8 {[%emt 0:01:48] [#]} 46. Kh2 $2 {[%emt 0:02:33]} (46. Qf5+ $1 $18 {is the precise move to win.} Kg8 47. Rxf7 Qe1+ 48. Kg4 Rxf7 49. Qxe6 h5+ 50. Kxh5 g6+ 51. Qxg6+ (51. Kxg6 Qg3+ 52. Kh5 Kh8 $11) 51... Kh8 52. Nf6 (52. Qxf7 Qxh4+ 53. Kg6 Qg5+ 54. Kxg5 $11) 52... Qa5+ 53. Qg5 Qxg5+ 54. hxg5) 46... Nd4 $16 {[%emt 0:02:27] [#]} 47. Rd7 {[%emt 0:01:21]} (47. Nf4 $1 $16) 47... Qe1 $1 $14 {[%emt 0:07:04]} (47... Qd2 48. Nf6+ gxf6 49. Qxd4 Qf4+ 50. Kh3 $11) 48. Qg3 {[%emt 0:00:40]} (48. Qxd4 Qxh4+ 49. Kg1 Qe1+ 50. Kh2 Qh4+ 51. Kg1 Qe1+ 52. Kh2 Qh4+ $11) ({White should play} 48. Nf4 $1 $14 Ne2 (48... Qxh4+ 49. Nh3 $11) 49. Qf5+ Kg8 50. Nxe2 Qxe2 51. Qe5) 48... Qb1 {[%emt 0:02:06]} (48... Qd2 $11) 49. Qf2 $16 {[%emt 0:00:24]} Ne6 {[%emt 0:00:35]} 50. h5 {[%emt 0:00:37]} (50. Qd2 $16) 50... Qc2 $11 {[%emt 0:00:25]} 51. Kg3 {[%emt 0:00:12]} Qc1 {[%emt 0:01:01]} (51... f5 {is more complex.} 52. Qb6 Qc1 53. f4 Qe1+) 52. Ne3 {[%emt 0:00:15]} Rc8 {[%emt 0:01:09][%cal Oc8c2] Strongly threatening ...Rc2!} 53. Qd2 {[%emt 0:00:27][%cal Od2c1] Hoping for Qxc1!} (53. Rxf7 $2 {too greedy.} Rc2 54. Nxc2 bxc2 $19 (54... Qg5+ 55. Kh2 $15)) 53... Qc5 {[%emt 0:00:25]} 54. Rd5 {[%emt 0:00:52]} (54. Rxf7 $2 {loses.} Qg5+ 55. Kf2 Rc2 $19 (55... Qxh5 56. Rd7 $11)) 54... Qa7 {[%emt 0:01:06][%cal Oc8c2]} 55. e5 {[%emt 0:00:32]} (55. Kg4 $14) 55... Qa4 {[%emt 0:00:20] ...Qf4+ would now be deadly. The position is equal.} 56. Qd3+ {[%emt 0:00:39]} Kh8 {[%emt 0:00:41]} 57. Qf5 {[%emt 0:00:14] Wards off Qf4+} Qa1 {[%emt 0:01:26] White must now prevent ...Qe1+.} 58. Qxf7 {[%emt 0:00:38]} Qe1+ {[%emt 0:00:04]} 59. Kg4 {[%emt 0:00:08]} Qb4+ $1 {[%emt 0:00:03]} 60. Kg3 {[%emt 0:00:37]} (60. f4 $5 Rf8 $8 61. Qxe6 Qxf4+ 62. Kh3 Qxe3+ 63. Kh2 $17) 60... Qe1+ {[%emt 0:00:01]} 61. Kg4 {[%emt 0:00:11]} Qb4+ $1 {[%emt 0:00:02]} 62. Kg3 {[%emt 0:01:09] Blacks defense is rewarded with a draw.   Weighted Error Value: White=0.30/Black=0.27 (precise) .  Loses game:     	---       	Black=1      Missed win:     	White=2     	---        Mistake:       	White=6     	Black=4      Inaccurate:     	White=1     	Black=5      OK:         	White=22    	Black=16     Best:        	White=6     	Black=7      Strong:       	White=1     	Black=3} (62. f4 $5 Rf8 $8 63. Qxe6 Qxf4+ 64. Kh3 Qxe3+ 65. Kh2 $17) 1/2-1/2